[Event "FIDE WSCC 50 2022"]
[Site "Assisi"]
[Date "2022.11.23"]
[Round "8.12"]
[White "Al-Ali, Hussein Ali Hussein"]
[Black "Prie, Eric"]
[Result "0-1"]
[ECO "B01"]
[WhiteElo "2231"]
[BlackElo "2356"]
[Annotator "TA"]
[PlyCount "86"]
[EventDate "2022.11.14"]
[EventType "swiss"]
[EventCountry "ITA"]
[SourceTitle "playchess.com"]
[Source "ChessBase"]
[SourceQuality "1"]
[TimeControl "40/5400+30:1800+30"]

{[%evp 11,86,30,30,0,12,6,15,0,25,13,17,-36,-41,-38,-38,-132,-136,-206,-257,-239,-216,-297,-312,-317,-303,-324,-318,-318,-308,-427,-427,-425,-422,-557,-558,-533,-429,-430,-423,-422,-430,-471,-471,-477,-477,-510,-505,-506,-506,-632,-618,-651,-641,-685,-656,-656,-618,-29966,-29968,-29976,-29977,-29973,-951,-29981,-29972,-29968,-29970,-29973,-29974,-29972,-29973,-29971,-29972,-29962,-11668,-5514,-5465]} 1. e4 {[%emt 0:00:08]} d5 {[%emt 0:00:09]} 2. exd5 {[%emt 0:00:09]} Qxd5 {[%emt 0:00:10]} 3. Nc3 {[%emt 0:00:04]} Qa5 {[%emt 0:00:09]} 4. d4 {[%emt 0:00:09]} Nf6 {[%emt 0:00:11]} 5. Bc4 {[%emt 0:00:51]} Bg4 {[%emt 0:00:12]} 6. f3 {[%emt 0:00:36]} Bf5 {[%emt 0:00:11]} 7. g4 {[%emt 0:01:32] [#] Threatens to win with Bd2. B01: Scandinavian Defence.} Bg6 {[%emt 0:00:10] aiming for ...Nc6.} 8. h4 {[%emt 0:00:31] Hoping for h5.} h6 $1 {[%emt 0:00:40]} 9. Nge2 {[%emt 0:00:04] The position is equal.} Nbd7 {[%emt 0:06:32]} 10. Bd2 {[%emt 0:01:32][%cal Oc3d5] And now Nd5! would win.} O-O-O {[%emt 0:01:30]} 11. Nf4 {[%emt 0:19:18]} (11. Nb5 $11 Qb6 12. a4) 11... e5 $15 {[%emt 0:02:44]} 12. Nxg6 {[%emt 0:01:46]} fxg6 {[%emt 0:01:35] [#]} 13. Bd3 $146 {[%emt 0:05:14]} (13. d5 $15) ({Predecessor:} 13. d5 Nb6 14. Qe2 Nxc4 15. Qxc4 Nxd5 16. O-O-O Qb4 17. Qe2 Nxc3 18. Bxc3 Qf4+ 19. Kb1 Rxd1+ 20. Rxd1 {0-1 (38) Ambirk,J (1994)-Simonet,D (1964) ICCF email 2015}) 13... exd4 $17 {[%emt 0:04:57]} 14. Ne2 {[%emt 0:00:52]} (14. Ne4 $17 Bb4 15. a3 Bxd2+ 16. Qxd2) 14... Qb6 {[%emt 0:11:54]} 15. O-O {[%emt 0:02:26]} Nd5 {[%emt 0:17:53]} (15... Qxb2 16. Rb1 Qa3 17. Bxg6 $17) 16. Qe1 {[%emt 0:05:33]} Bb4 {[%emt 0:01:50]} (16... Qxb2 17. Rb1 Qa3 18. Be4 $17) 17. Bxb4 {[%emt 0:00:48]} Nxb4 {[%emt 0:00:08]} 18. Qf2 {[%emt 0:02:30]} Nc5 {[%emt 0:06:45][%cal Bd7c5,Bc5b3,Bb3a1][%mdl 32]} 19. Rfd1 {[%emt 0:05:10]} Rhf8 {[%emt 0:07:47]} (19... Nbxd3 $2 20. cxd3 Rhe8 21. Nxd4 $19) 20. a3 {[%emt 0:04:54]} Nbxd3 {[%emt 0:03:42]} 21. cxd3 {[%emt 0:00:40]} Nb3 {[%emt 0:00:05] Inhibits Rac1.} (21... Qxb2 $2 {perishes.} 22. Rac1 Nb3 23. Rb1 Qxa3 24. Ng3 $19) 22. Ng3 {[%emt 0:01:49]} Nxa1 {[%emt 0:00:41]} 23. Rxa1 {[%emt 0:01:06]} Qb3 {[%emt 0:01:21]} 24. Qe2 {[%emt 0:00:42]} Qf7 {[%emt 0:02:15]} 25. Kg2 {[%emt 0:00:20]} h5 {[%emt 0:04:05]} 26. g5 {[%emt 0:03:44]} Qf4 {[%emt 0:00:30]} 27. Rh1 {[%emt 0:00:46]} Qe3 {[%emt 0:03:30]} 28. Qd1 {[%emt 0:01:15]} Rde8 {[%emt 0:01:37][%cal Bd8e8,Be8e5,Be5b5][%mdl 32]} 29. Ne4 {[%emt 0:00:24]} Re5 {[%emt 0:02:38]} 30. Rh3 {[%emt 0:00:58]} a5 {[%emt 0:03:32]} 31. Qc2 {[%emt 0:00:42]} Kb8 {[%emt 0:03:09]} 32. b4 {[%emt 0:02:19]} axb4 {[%emt 0:01:16]} 33. axb4 {[%emt 0:00:08]} Rb5 {[%emt 0:01:44]} 34. Qc4 {[%emt 0:05:22]} Rbf5 {[%emt 0:00:47]} 35. Nc5 {[%emt 0:00:57]} Qe2+ {[%emt 0:04:25]} ({And not} 35... Rxf3 36. Nd7+ Kc8 37. Nb6+ Kb8 38. Nd7+ Kc8 39. Nb6+ Kb8 40. Nd7+ $11) 36. Kg1 {[%emt 0:00:17] [#]} Re8 {[%emt 0:01:32]} ({Worse is} 36... Rxf3 37. Nd7+ Kc8 38. Nb6+ Kb8 39. Nd7+ Kc8 40. Nb6+ Kb8 41. Nd7+ $11) (36... Rxc5 $142 $1 37. bxc5 (37. Qxc5 Qe1+) 37... Qe1+ 38. Kg2 Re8 39. Qc2 Re2+ 40. Qxe2 Qxe2+ 41. Kg1 Qxd3 42. Rh2 Qe3+ 43. Kg2 d3 44. Kg3 d2 45. Rh1 Qe1+ 46. Rxe1 dxe1=Q+ 47. Kf4 Qxh4+ 48. Ke5 Qe1+ 49. Kd5 h4 50. Kd4 h3 51. f4 h2 52. Kd5 h1=Q+ 53. Kc4 Qhe4+ 54. Kb3 Q1b1+ 55. Kc3 Qed3#) 37. Ne4 {[%emt 0:01:43]} Rxf3 {[%emt 0:02:51]} 38. Rxf3 {[%emt 0:00:07]} Qxf3 {[%emt 0:00:04]} 39. Qxd4 {[%emt 0:00:31] KQR-KQN} Rf8 {[%emt 0:01:15]} 40. Nf2 {[%emt 0:04:26]} Qg3+ {[%emt 0:00:10]} 41. Kf1 {[%emt 0:30:33]} Rf4 {[%emt 0:30:36]} 42. Qc5 {[%emt 0:00:31]} b6 {[%emt 0:00:18]} 43. Qc2 {[%emt 0:00:22]} Qxh4 {[%emt 0:00:25] White got outplayed after the opening.   Weighted Error Value: White=0.38/Black=0.07 (flawless)} 0-1

[Event "FIDE WSCC 50 2022"]
[Site "Assisi"]
[Date "2022.11.23"]
[Round "8.13"]
[White "Kantorik, Marian"]
[Black "Arakhamia-Grant, Ketevan"]
[Result "0-1"]
[ECO "B07"]
[WhiteElo "2171"]
[BlackElo "2327"]
[Annotator "TA"]
[PlyCount "62"]
[EventDate "2022.11.14"]
[EventType "swiss"]
[EventCountry "ITA"]
[SourceTitle "playchess.com"]
[Source "ChessBase"]
[SourceQuality "1"]
[TimeControl "40/5400+30:1800+30"]

{[%evp 11,62,39,50,0,0,-6,10,-68,-56,-86,-55,-68,-73,-71,-13,-38,-36,-36,-29,-26,-33,-3,-20,-7,-8,-50,-58,-125,-104,-200,-188,-419,-423,-415,-445,-453,-444,-455,-419,-510,-507,-1242,-1278,-1184,-1137,-29968,-29969,-29965,-29966,-29964,-29963,-5514,-5514]} 1. d4 {[%emt 0:00:10]} d6 {[%emt 0:00:06]} 2. e4 {[%emt 0:00:20]} Nf6 {[%emt 0:00:25]} 3. Nc3 {[%emt 0:01:51]} Nbd7 {[%emt 0:00:11]} 4. f4 {[%emt 0:00:40]} e5 {[%emt 0:01:11]} 5. Nf3 {[%emt 0:01:34]} exd4 {[%emt 0:00:28]} 6. Qxd4 {[%emt 0:02:17]} c6 $1 {[%emt 0:00:14][%cal Od6d5]} 7. a4 {[%emt 0:01:35] Prevents d5. 7.Bd2 gains popularity. B07: Pirc Defence: Miscellaneous Systems.} (7. Be3 $14) 7... d5 $11 {[%emt 0:12:35]} 8. e5 {[%emt 0:08:32]} Bc5 {[%emt 0:10:34]} 9. Qd3 {[%emt 0:00:27]} ({Better is} 9. Qd2 $1 $11) 9... Ng4 $1 $15 {[%emt 0:00:31]} 10. Nd1 {[%emt 0:00:21] Inhibits Nf2.} Qe7 {[%emt 0:01:20] Black is more active.} 11. Ne3 {[%emt 0:10:16] Prevents f6.} Nxe3 {[%emt 0:21:09]} 12. Bxe3 {[%emt 0:00:09]} Bxe3 {[%emt 0:00:31]} (12... f6 $17 {[%cal Rf6e5]} 13. Be2 O-O) 13. Qxe3 $11 {[%emt 0:00:06]} Qb4+ {[%emt 0:00:13]} 14. Kf2 {[%emt 0:00:44]} Nc5 {[%emt 0:05:35]} 15. Qd4 {[%emt 0:11:42]} Ne4+ {[%emt 0:00:27] [#]} 16. Ke3 $146 {[%emt 0:03:52][%mdl 2048] White is not holding back} ({Predecessor:} 16. Kg1 Qe7 17. Bd3 Bf5 18. a5 O-O 19. h3 Ng3 20. Bxf5 Nxf5 21. Qd3 g6 22. Kh2 {1-0 (43) Bologan,V (2620)-Bauer,C (2480) Bastia 1999}) 16... Qe7 {[%emt 0:00:15]} 17. Bd3 {[%emt 0:01:45]} Bf5 {[%emt 0:01:25]} 18. Rad1 {[%emt 0:15:49]} (18. Ke2 {simplifies} O-O 19. Rhe1 f6 20. exf6 Rxf6 21. Kf1) 18... O-O {[%emt 0:00:43][%cal Bh8f8,Bf8f4,Bf4f3,Bf3f2][%mdl 32]} (18... Rd8 $5 {[%cal Rc6c5]} 19. Qxa7 O-O $11) 19. Bxe4 {[%emt 0:02:01]} (19. Ng5 $15) 19... Bxe4 $17 {[%emt 0:00:47]} 20. c3 {[%emt 0:04:54]} (20. Kd2 $17 {was worth a try.}) 20... f6 $19 {[%emt 0:09:14][%cal Bf7f6,Bf6e5][%mdl 32] And now ...c5 would win.} 21. Rhe1 $2 {[%emt 0:09:42] [#]} (21. e6) 21... c5 $1 {[%emt 0:17:10]} 22. Qd2 {[%emt 0:00:21]} fxe5 {[%emt 0:00:50]} 23. Kf2 {[%emt 0:05:30]} Rxf4 {[%emt 0:01:54]} ({Not} 23... exf4 24. Qxd5+ Bxd5 25. Rxe7 $11) 24. Kg1 {[%emt 0:00:09]} Raf8 {[%emt 0:02:13]} 25. Re2 {[%emt 0:04:31]} Qf7 {[%emt 0:08:52]} 26. Qe1 {[%emt 0:04:10]} (26. b4 $142) 26... Bxf3 {[%emt 0:03:30]} 27. gxf3 {[%emt 0:00:12]} Rxf3 {[%emt 0:00:06] Strongly threatening ...e4.} 28. Rxe5 {[%emt 0:00:56]} Qg6+ {[%emt 0:00:57]} 29. Kh1 {[%emt 0:00:14]} Rf2 {[%emt 0:00:24][%csl Gf2][%cal Rg6g2]} 30. Qg1 {[%emt 0:01:06]} Qf6 {[%emt 0:00:07]} 31. Re3 {[%emt 0:00:32]} d4 {[%emt 0:00:11] Weighted Error Value: White=0.76/Black=0.05 (flawless)} 0-1

[Event "FIDE WSCC 50 2022"]
[Site "Assisi"]
[Date "2022.11.23"]
[Round "8.14"]
[White "Jhunjhnuwala, Krishan"]
[Black "Michalek, Jan"]
[Result "1-0"]
[ECO "B22"]
[WhiteElo "2326"]
[BlackElo "2251"]
[Annotator "TA"]
[PlyCount "53"]
[EventDate "2022.11.14"]
[EventType "swiss"]
[EventCountry "ITA"]
[SourceTitle "playchess.com"]
[Source "ChessBase"]
[SourceQuality "1"]
[TimeControl "40/5400+30:1800+30"]

{[%evp 13,53,-29,-29,-36,61,30,59,72,68,39,93,47,119,67,119,113,166,162,143,148,154,136,229,229,221,241,241,222,193,203,193,199,180,164,221,216,222,206,216,168,174,169]} 1. e4 {[%emt 0:00:05]} c5 {[%emt 0:00:13]} 2. c3 {[%emt 0:00:05]} Nf6 {[%emt 0:00:14]} 3. e5 {[%emt 0:00:06]} Nd5 {[%emt 0:00:06]} 4. d4 {[%emt 0:00:03]} cxd4 {[%emt 0:00:11]} 5. Qxd4 {[%emt 0:00:12]} e6 {[%emt 0:00:23]} 6. Bc4 {[%emt 0:00:12]} Nc6 {[%emt 0:00:53]} 7. Qe4 {[%emt 0:00:12]} Nde7 {[%emt 0:08:06]} 8. Nf3 {[%emt 0:00:18] B22: Sicilian: 2 c3.} d5 {[%emt 0:02:32]} (8... Ng6 $15) 9. exd6 $14 {[%emt 0:00:35]} Nf5 {[%emt 0:00:30]} 10. Bb3 {[%emt 0:02:05] White is slightly better.} Bxd6 {[%emt 0:04:18]} 11. O-O {[%emt 0:02:00] [#]} Bd7 $146 {[%emt 0:10:01]} ({Better is} 11... Qc7 $14) ({Predecessor:} 11... Qc7 12. Nbd2 b5 13. Bd5 Nfe7 14. Bxc6+ Nxc6 15. c4 b4 16. Nb3 f5 17. Qc2 Ne5 18. Nxe5 Bxe5 {½-½ (34) Ehrlich,S (1815)-Thesing,M (2440) Muenster 2000}) 12. Re1 {[%emt 0:05:05] White leaves nothing to chance now.} (12. Nbd2 $16) 12... Be7 {[%emt 0:03:01]} (12... Nce7 $14) 13. Nbd2 {[%emt 0:03:52]} (13. Bf4 $16) 13... Rc8 {[%emt 0:09:46]} ({Black should try} 13... Nd6 $14 14. Qf4 O-O) 14. Nc4 $16 {[%emt 0:02:37]} Nd6 {[%emt 0:06:27]} (14... b5 $16 {was called for.}) 15. Nxd6+ $18 {[%emt 0:03:02] White is clearly better.} Bxd6 {[%emt 0:00:06]} 16. Bg5 {[%emt 0:03:05]} Be7 {[%emt 0:02:55]} 17. Bf4 {[%emt 0:02:45] White is much more active.} Na5 {[%emt 0:01:47]} (17... Qb6 $16 {might work better.} 18. Rad1 Rd8) 18. Rad1 {[%emt 0:06:22]} Nxb3 {[%emt 0:01:30]} 19. axb3 {[%emt 0:00:17]} Qb6 {[%emt 0:00:39] [#]} 20. Rxd7 {[%emt 0:09:28][%mdl 512]} Kxd7 {[%emt 0:00:41] [#]} 21. Ne5+ $1 {[%emt 0:00:36]} Ke8 {[%emt 0:00:07]} 22. Qa4+ {[%emt 0:00:32]} ({Weaker is} 22. Qd3 Rd8 23. Qf3 Qxb3 $17) 22... Rc6 {[%emt 0:00:30]} 23. Be3 {[%emt 0:03:05]} Bc5 {[%emt 0:02:35]} (23... Qa6 $142) 24. Nxc6 {[%emt 0:01:35]} bxc6 {[%emt 0:01:24]} 25. Bxc5 {[%emt 0:01:13]} Qxc5 {[%emt 0:00:07]} 26. b4 {[%emt 0:00:25]} Qb6 {[%emt 0:02:06]} 27. Ra1 {[%emt 0:54:08] Weighted Error Value: White=0.12 (very precise) /Black=0.38} 1-0

[Event "FIDE WSCC 50 2022"]
[Site "Assisi"]
[Date "2022.11.23"]
[Round "8.15"]
[White "Fayard, Alain"]
[Black "Arkell, Keith C"]
[Result "0-1"]
[ECO "A40"]
[WhiteElo "2210"]
[BlackElo "2408"]
[Annotator "TA"]
[PlyCount "60"]
[EventDate "2022.11.14"]
[EventType "swiss"]
[EventCountry "ITA"]
[SourceTitle "playchess.com"]
[Source "ChessBase"]
[SourceQuality "1"]
[TimeControl "40/5400+30:1800+30"]

{[%evp 9,60,20,54,27,31,11,9,2,14,8,14,12,34,-8,-8,-50,-41,-50,-58,-64,-66,-60,-66,-85,-98,-118,-117,-126,-116,-198,-120,-202,-227,-240,-194,-487,-465,-448,-464,-694,-664,-2198,-1887,-29988,-29989,-29991,-29974,-29973,-29974,-29974,-29975,-29998,-29999]} 1. d4 {[%emt 0:00:05]} e6 {[%emt 0:00:12]} 2. c4 {[%emt 0:00:18]} Bb4+ {[%emt 0:00:05]} 3. Nc3 {[%emt 0:00:17]} c5 {[%emt 0:00:05]} 4. e3 {[%emt 0:00:56]} Bxc3+ {[%emt 0:00:05]} 5. bxc3 {[%emt 0:00:07]} f5 {[%emt 0:00:04]} 6. Bd3 {[%emt 0:03:07] A40: Unusual replies to 1 d4.} Nf6 {[%emt 0:00:05]} 7. f3 {[%emt 0:03:33]} ({Much weaker is} 7. dxc5 Na6 $15) 7... Nc6 {[%emt 0:00:11]} 8. Ne2 {[%emt 0:01:58] The position is equal.} d6 {[%emt 0:00:13]} 9. O-O {[%emt 0:02:19]} e5 {[%emt 0:00:08]} 10. Qc2 {[%emt 0:11:02]} g6 {[%emt 0:00:17] [#]} 11. Bd2 $146 {[%emt 0:03:57]} ({Predecessor:} 11. e4 f4 12. a4 g5 13. a5 O-O 14. a6 b6 15. Bb2 Kh8 16. Rfd1 Rg8 17. g4 fxg3 18. Nxg3 {0-1 (33) Noboa Silva,K (2331)-Arkell,K (2381) Chess.com INT 2021}) 11... Qe7 {[%emt 0:02:11] Black wants to play ...e4.} 12. d5 {[%emt 0:01:52] Inhibits e4.} Nd8 {[%emt 0:00:07] Strongly threatening ...e4.} 13. Ng3 {[%emt 0:02:52] Against e4} h5 {[%emt 0:01:21][%cal Bh7h5,Bh5h4][%mdl 32]} 14. Nh1 {[%emt 0:03:03]} e4 {[%emt 0:04:36]} 15. Be2 {[%emt 0:05:16]} Nf7 {[%emt 0:00:30]} 16. Nf2 {[%emt 0:01:53] Black continues to play with concentration.} h4 {[%emt 0:02:27]} 17. fxe4 {[%emt 0:13:07]} fxe4 {[%emt 0:00:37]} 18. Rab1 {[%emt 0:02:25]} Bf5 {[%emt 0:04:53]} 19. Kh1 {[%emt 0:06:01] [#]} (19. Qa4+ $17 Kf8 20. Nh3) 19... Ne5 {[%emt 0:02:19]} (19... O-O-O $1 $19 20. Nh3 Ne5) 20. a4 {[%emt 0:02:04]} (20. Qa4+ $17 Kf7 21. Nh3) 20... O-O-O {[%emt 0:02:03]} 21. a5 {[%emt 0:01:37]} Qh7 {[%emt 0:02:05]} 22. Rb3 $2 {[%emt 0:05:45]} (22. Nh3 {was the only defense.}) 22... Nh5 $19 {[%emt 0:01:03]} 23. Bxh5 {[%emt 0:01:28]} (23. Nxe4 $2 {[#]} Ng3+ $1 {[%mdl 512]} 24. Kg1 h3) 23... gxh5 {[%emt 0:07:54]} (23... Qxh5 $2 {loses.} 24. Qd1 $19) 24. Bc1 {[%emt 0:07:16]} (24. Rbb1 $142 Rdg8 25. Rg1) 24... Rhg8 {[%emt 0:02:17][%cal Og8g2,Bh8g8,Bg8g3,Bg3h3][%mdl 32] Hoping for ...Rxg2!} (24... Nxc4 $2 {is the wrong capture.} 25. Qe2 Ne5 26. Rb1 $19) 25. h3 {[%emt 0:05:18]} Qg6 {[%emt 0:00:43][%csl Gg8][%cal Rg6g2]} 26. Nd1 {[%emt 0:00:45] [#]} Bxh3 $1 {[%emt 0:17:15][%mdl 512] Black mates.} 27. gxh3 {[%emt 0:01:43]} (27. Rb2 Rdf8) 27... Qg3 {[%emt 0:00:44]} 28. Qh2 {[%emt 0:01:16]} Nf3 {[%emt 0:02:31][%csl Gf3][%cal Rg3h2]} 29. Qxg3 {[%emt 0:01:04]} Rxg3 {[%emt 0:00:07]} 30. Rb2 {[%emt 0:02:24]} Rxh3+ {[%emt 0:00:28] Weighted Error Value: White=0.85/Black=0.08 (flawless)} 0-1